fUSD/lending_fUSD_20250417
["ID","MTS","AMOUNT","RATE_DAILY","PERIOD"]
[358248434,1744876279630,-500.0,0.00050136,120]
[358248435,1744876279640,-1626.25,0.00050136,120]
[358248436,1744876279650,-151.0,0.00050136,120]
[358248437,1744876279659,-151.0,0.00050136,120]
[358248438,1744876279669,-1000.0,0.00050136,120]
[358248439,1744876279679,-1339.26,0.00050136,120]
[358248440,1744876279689,-1497.28,0.00050136,120]
[358248441,1744876279698,-1832.25,0.00050136,120]
[358248442,1744876279707,-630.84,0.00050136,120]
[358248443,1744876279716,-500.0,0.00050136,120]
[358248444,1744876279726,-500.0,0.00050136,120]
[358248445,1744876279735,-615.64,0.00050136,120]
[358248446,1744876279744,-500.0,0.00050136,120]
[358248447,1744876279754,-500.0,0.00050136,120]
[358248448,1744876279764,-500.0,0.00050136,120]
[358248449,1744876279774,-692.24,0.00050136,120]
[358248450,1744876279783,-500.0,0.00050136,120]
[358248451,1744876279793,-1231.98,0.00050136,120]
[358248452,1744876279802,-1043.32,0.00050136,120]
[358248453,1744876279812,-500.0,0.00050136,120]
[358248454,1744876279822,-500.0,0.00050136,120]
[358248455,1744876279831,-1684.61,0.00050136,120]
[358248456,1744876279841,-500.0,0.00050136,120]
[358248457,1744876279851,-500.0,0.00050136,120]
[358248458,1744876279861,-668.2,0.00050136,120]
[358248459,1744876279870,-500.0,0.00050136,120]
[358248460,1744876279879,-500.0,0.00050136,120]
[358248461,1744876279889,-500.0,0.00050136,120]
[358248462,1744876279899,-500.0,0.00050136,120]
[358248463,1744876279909,-500.0,0.00050136,120]
[358248464,1744876279919,-500.0,0.00050136,120]
[358248465,1744876279929,-500.0,0.00050136,120]
[358248466,1744876279938,-500.0,0.00050136,120]
[358248467,1744876279948,-500.0,0.00050136,120]
[358248468,1744876279958,-864.39,0.00050136,120]
[358248469,1744876279968,-626.02,0.00050136,120]
[358248470,1744876279978,-500.0,0.00050136,120]
[358248471,1744876279988,-500.0,0.00050136,120]
[358248472,1744876279998,-1072.56,0.00050136,120]
[358248473,1744876280007,-196.800929,0.00050136,120]
[358248474,1744876280017,-1764.88,0.00050136,120]
[358248475,1744876280027,-196.800929,0.00050136,120]
[358248476,1744876280037,-500.0,0.00050136,120]
[358248477,1744876280046,-917.98,0.00050136,120]
[358248478,1744876280056,-5640.62,0.00050136,120]
[358248479,1744876280065,-196.800929,0.00050136,120]
[358248480,1744876280076,-196.80093,0.00050136,120]
[358248481,1744876280085,-1475.44,0.00050136,120]
[358248482,1744876280095,-500.0,0.00050136,120]
[358248483,1744876280107,-500.0,0.00050136,120]
[358248484,1744876280120,-1612.75,0.00050136,120]
[358248485,1744876280130,-500.0,0.00050136,120]
[358248486,1744876280139,-500.0,0.00050136,120]
[358248487,1744876280151,-500.0,0.00050136,120]
[358248488,1744876280160,-2211.01,0.00050136,120]
[358248489,1744876280170,-791.97,0.00050136,14]
[358248490,1744876280179,-1177.02,0.00050136,120]
[358248491,1744876280190,-151.0,0.00050136,120]
[358248492,1744876280200,-151.0,0.00050136,120]
[358248493,1744876280210,-500.0,0.00050136,120]
[358248494,1744876280220,-1468.16,0.00050136,120]
[358248495,1744876280230,-1829.33,0.00050136,120]
[358248496,1744876280240,-500.0,0.00050136,120]
[358248497,1744876280250,-500.0,0.00050136,120]
[358248498,1744876280261,-500.0,0.00050136,120]
[358248499,1744876280271,-520.62,0.00050136,120]
[358248500,1744876280281,-500.0,0.00050136,120]
[358248501,1744876280290,-500.0,0.00050136,120]
[358248502,1744876280300,-306.21440455,0.00050136,120]
[358248503,1744876280309,-500.0,0.00050136,120]
[358248504,1744876280319,-793.46,0.00050136,120]
[358248505,1744876280328,-500.0,0.00050136,120]
[358248506,1744876280338,-500.0,0.00050136,120]
[358248507,1744876280351,-500.0,0.00050136,120]
[358248508,1744876280360,-500.0,0.00050136,120]
[358248509,1744876280370,-500.0,0.00050136,120]
[358248510,1744876280380,-500.0,0.00050136,120]
[358248511,1744876280389,-527.45,0.00050136,120]
[358248512,1744876280400,-1128.03,0.00050136,120]
[358248513,1744876280410,-500.0,0.00050136,120]
[358248514,1744876280420,-500.0,0.00050136,120]
[358248515,1744876280430,-151.0,0.00050136,120]
[358248516,1744876280439,-151.0,0.00050136,120]
[358248517,1744876280449,-500.0,0.00050136,120]
[358248518,1744876280459,-649.21553756,0.00050136,120]
[358248519,1744876280469,-500.0,0.00050136,120]
[358248520,1744876280480,-212.580164,0.00050136,120]
[358248521,1744876280490,-500.0,0.00050136,120]
[358248522,1744876280500,-500.0,0.00050136,120]
[358248523,1744876280509,-10543.98,0.00050136,120]
[358248524,1744876280519,-10543.98,0.00050136,120]
[358248525,1744876280528,-500.0,0.00050136,120]
[358248526,1744876280537,-674.54,0.00050136,120]
[358248527,1744876280547,-504.45,0.00050136,120]
[358248528,1744876280557,-500.0,0.00050136,14]
[358248529,1744876280568,-500.0,0.00050136,120]
[358248530,1744876280578,-500.0,0.00050136,120]
[358248531,1744876280588,-586.57,0.00050136,120]
[358248532,1744876280597,-500.0,0.00050136,120]
[358248533,1744876280607,-500.0,0.00050136,120]
[358248534,1744876280618,-500.0,0.00050136,120]
[358248535,1744876280627,-500.0,0.00050136,120]
[358248536,1744876280637,-1036.71,0.00050136,120]
[358248537,1744876280647,-500.0,0.00050136,120]
[358248538,1744876280657,-500.0,0.00050136,120]
[358248539,1744876280666,-909.38,0.00050136,120]
[358248540,1744876280675,-500.0,0.00050136,120]
[358248541,1744876280684,-500.0,0.00050136,120]
[358248542,1744876280694,-500.0,0.00050136,120]
[358248543,1744876280703,-500.0,0.00050136,120]
[358248544,1744876280713,-1171.86,0.00050136,120]
[358248545,1744876280722,-1317.094476,0.00050136,120]
[358248546,1744876280732,-1317.094476,0.00050136,120]
[358248547,1744876280741,-500.0,0.00050136,120]
[358248548,1744876280752,-500.0,0.00050136,120]
[358248549,1744876280761,-2181.26,0.00050136,120]
[358248550,1744876280771,-500.0,0.00050136,120]
[358248551,1744876280782,-675.13,0.00050136,120]
[358248552,1744876280792,-283.108421,0.00050136,120]
[358248553,1744876280802,-283.108421,0.00050136,120]
[358248554,1744876280811,-500.0,0.00050136,120]
[358248555,1744876280821,-1317.094476,0.00050136,120]
[358248556,1744876280832,-1317.094466,0.00050136,120]
[358248557,1744876280842,-500.0,0.00050136,120]
[358248558,1744876280852,-326.16370488,0.00050136,120]
[358248559,1744876280861,-283.108421,0.00050136,120]
[358248560,1744876280872,-500.0,0.00050136,120]
[358248561,1744876280882,-283.108416,0.00050136,120]
[358248562,1744876280892,-500.0,0.00050136,120]
[358248563,1744876280902,-500.0,0.00050136,120]
[358248564,1744876280912,-500.0,0.00050136,120]
[358248565,1744876280922,-500.0,0.00050136,120]
[358248566,1744876280932,-1081.53,0.00050136,120]
[358248567,1744876280943,-500.0,0.00050136,120]
[358248568,1744876280954,-500.0,0.00050136,120]
[358248569,1744876280964,-1595.7,0.00050136,120]
[358248570,1744876280974,-1097.37,0.00050136,120]
[358248571,1744876280985,-500.0,0.00050136,120]
[358248572,1744876280995,-500.0,0.00050136,120]
[358248573,1744876281004,-1093.79,0.00050136,120]
[358248574,1744876281014,-722.02,0.00050136,120]
[358248575,1744876281023,-500.0,0.00050136,120]
[358248576,1744876281032,-978.59,0.00050136,120]
[358248577,1744876281042,-500.0,0.00050136,120]
[358248578,1744876281052,-1836.63,0.00050136,120]
[358248579,1744876281062,-500.0,0.00050136,120]
[358248580,1744876281071,-500.0,0.00050136,120]
[358248581,1744876281080,-614.33,0.00050136,120]
[358248582,1744876281090,-447.528559,0.00050136,120]
[358248583,1744876281100,-1012.01,0.00050136,120]
[358248584,1744876281114,-2529.41,0.00050136,120]
[358248585,1744876281124,-1942.54,0.00050136,120]
[358248586,1744876281134,-447.528553,0.00050136,120]
[358248587,1744876281144,-500.0,0.00050136,120]
[358248588,1744876281155,-500.0,0.00050136,120]
[358248589,1744876281165,-2464.72,0.00050136,120]
[358248590,1744876281175,-500.0,0.00050136,120]
[358248591,1744876281186,-500.0,0.00050136,120]
[358248592,1744876281196,-1110.2,0.00050136,120]
[358248593,1744876281206,-771.84,0.00050136,120]
[358248594,1744876281216,-151.0,0.00050136,120]
[358248595,1744876281226,-205.590994,0.00050136,120]
[358248596,1744876281236,-500.0,0.00050136,120]
[358248597,1744876281245,-1931.2,0.00050136,120]
[358248598,1744876281255,-500.0,0.00050136,120]
[358248599,1744876281265,-500.0,0.00050136,120]
[358248600,1744876281276,-500.0,0.00050136,120]
[358248601,1744876281287,-676.22,0.00050136,120]
[358248602,1744876281296,-500.0,0.00050136,120]
[358248603,1744876281306,-500.0,0.00050136,120]
[358248604,1744876281315,-500.0,0.00050136,120]
[358248605,1744876281325,-601.64,0.00050136,120]
[358248606,1744876281335,-2027.54,0.00050136,120]
[358248607,1744876281345,-1731.61,0.00050136,120]
[358248608,1744876281355,-500.0,0.00050136,120]
[358248609,1744876281364,-506.42,0.00050136,120]
[358248610,1744876281375,-1571.6,0.00050136,120]
[358248611,1744876281385,-560.74,0.00050136,120]
[358248612,1744876281395,-500.0,0.00050136,120]
[358248613,1744876281405,-575.17,0.00050136,120]
[358248614,1744876281415,-500.0,0.00050136,120]
[358248615,1744876281425,-500.0,0.00050136,120]
[358248616,1744876281434,-1491.97,0.00050136,120]
[358248617,1744876281444,-500.0,0.00050136,120]
[358248618,1744876281453,-1061.2,0.00050136,120]
[358248619,1744876281463,-500.0,0.00050136,120]
[358248620,1744876281473,-1783.03,0.00050136,120]
[358248621,1744876281484,-500.0,0.00050136,120]
[358248622,1744876281494,-559.87,0.00050136,120]
[358248623,1744876281504,-500.0,0.00050136,120]
[358248624,1744876281514,-500.0,0.00050136,120]
[358248625,1744876281524,-500.0,0.00050136,120]
[358248626,1744876281534,-500.0,0.00050136,120]
[358248627,1744876281544,-1489.6,0.00050136,120]
[358248628,1744876281554,-3035.42,0.00050136,120]
[358248629,1744876281563,-2015.28,0.00050136,120]
[358248630,1744876281573,-1985.57,0.00050136,120]
[358248631,1744876281583,-835.38,0.00050136,120]
[358248632,1744876281593,-843.17,0.00050136,120]
[358248633,1744876281603,-2125.57,0.00050136,120]
[358248634,1744876281613,-728.48,0.00050136,120]
[358248635,1744876281693,-500.0,0.00050136,120]
[358248636,1744876281704,-517.91,0.00050136,120]
[358248637,1744876281714,-506.65,0.00050136,120]
[358248638,1744876281724,-500.0,0.00050136,120]
[358248639,1744876281734,-531.0,0.00050136,120]
[358248640,1744876281744,-1110.06,0.00050136,120]
[358248641,1744876281753,-300.0,0.00050136,120]
[358248642,1744876281763,-500.0,0.00050136,120]
[358248643,1744876281772,-3548.1,0.00050136,120]
[358248644,1744876281781,-887.03,0.00050136,120]
[358248645,1744876281791,-500.0,0.00050136,120]
[358248646,1744876281803,-544.56790632,0.00050136,120]
[358248647,1744876281815,-1073.22,0.00050136,120]
[358248648,1744876281826,-500.0,0.00050136,120]
[358248649,1744876281839,-500.0,0.00050136,120]
[358248650,1744876281848,-500.0,0.00050136,120]
[358248651,1744876281858,-500.0,0.00050136,120]
[358248652,1744876281868,-500.0,0.00050136,120]
[358248653,1744876281877,-174.482397,0.00050136,120]
[358248654,1744876281887,-500.0,0.00050136,120]
[358248655,1744876281896,-174.482397,0.00050136,120]
[358248656,1744876281910,-500.0,0.00050136,120]
[358248657,1744876281920,-500.0,0.00050136,120]
[358248658,1744876281929,-500.0,0.00050136,120]
[358248659,1744876281939,-500.0,0.00050136,120]
[358248660,1744876281949,-1152.77,0.00050136,120]
[358248661,1744876281959,-174.482397,0.00050136,120]
[358248662,1744876281969,-2168.54,0.00050136,120]
[358248663,1744876281979,-174.482391,0.00050136,120]
[358248664,1744876281988,-568.46,0.00050136,120]
[358248665,1744876281999,-500.0,0.00050136,120]
[358248666,1744876282009,-500.0,0.00050136,120]
[358248667,1744876282020,-500.0,0.00050136,120]
[358248668,1744876282031,-888.6,0.00050136,120]
[358248669,1744876282043,-500.0,0.00050136,120]
[358248670,1744876282052,-1780.21,0.00050136,120]
[358248671,1744876282062,-500.0,0.00050136,120]
[358248672,1744876282072,-979.12,0.00050136,120]
[358248673,1744876282084,-2832.46,0.00050136,120]
[358248674,1744876282094,-1076.61,0.00050136,120]
[358248675,1744876282105,-518.93,0.00050136,120]
[358248676,1744876282117,-500.0,0.00050136,120]
[358248677,1744876282126,-889.68,0.00050136,120]
[358248678,1744876282136,-500.0,0.00050136,120]
[358248679,1744876282147,-500.0,0.00050136,120]
[358248680,1744876282157,-3566.71,0.00050136,120]
[358248681,1744876282167,-500.0,0.00050136,120]
[358248682,1744876282178,-1124.76,0.00050136,120]
[358248683,1744876282189,-1217.56,0.00050136,120]
[358248684,1744876282199,-1639.19,0.00050136,120]
[358248685,1744876282209,-1092.56,0.00050136,120]
[358248686,1744876282219,-500.0,0.00050136,120]
[358248687,1744876282228,-972.81,0.00050136,118]
[358248688,1744876282238,-1788.27,0.00050136,120]
[358248689,1744876282247,-861.37,0.00050136,120]
[358248690,1744876282257,-822.54,0.00050136,120]
[358248691,1744876282267,-640.37270422,0.00050136,120]
[358248692,1744876282276,-500.0,0.00050136,120]
[358248693,1744876282285,-500.0,0.00050136,120]
[358248694,1744876282295,-500.0,0.00050136,120]
[358248695,1744876282305,-702.66,0.00050136,120]
[358248696,1744876282315,-1270.01,0.00050136,120]
[358248697,1744876282325,-500.0,0.00050136,120]
[358248698,1744876282335,-500.0,0.00050136,120]
[358248699,1744876282345,-500.0,0.00050136,120]
[358248700,1744876282355,-909.8,0.00050136,120]
[358248701,1744876282365,-593.0,0.00050136,120]
[358248702,1744876282375,-753.51,0.00050136,120]
[358248703,1744876282384,-464.59750644,0.00050136,120]
[358248704,1744876282394,-516.56,0.00050136,120]
[358248705,1744876282403,-973.47,0.00050136,120]
[358248706,1744876282414,-500.0,0.00050136,120]
[358248707,1744876282423,-331.04519901,0.00050136,120]
[358248708,1744876282433,-2790.52,0.00050136,120]
[358248709,1744876282443,-500.0,0.00050136,120]
[358248710,1744876282453,-500.0,0.00050136,120]
[358248711,1744876282462,-500.0,0.00050136,120]
[358248712,1744876282472,-555.93,0.00050136,120]
[358248713,1744876282481,-554.36,0.00050136,120]
[358248714,1744876282491,-530.99030787,0.00050136,120]
[358248715,1744876282501,-1344.71,0.00050136,120]
[358248716,1744876282511,-1633.9,0.00050136,120]
[358248717,1744876282521,-1508.99,0.00050136,120]
[358248718,1744876282531,-500.0,0.00050136,120]
[358248719,1744876282540,-500.0,0.00050136,120]
[358248720,1744876282550,-801.2,0.00050136,120]
[358248721,1744876282559,-3739.63,0.00050136,120]
[358248722,1744876282569,-2484.07,0.00050136,120]
[358248723,1744876282579,-500.0,0.00050136,120]
[358248724,1744876282589,-500.0,0.00050136,120]
[358248725,1744876282599,-500.0,0.00050136,120]
[358248726,1744876282608,-605.98,0.00050136,120]
[358248727,1744876282617,-500.0,0.00050136,120]
[358248728,1744876282628,-500.0,0.00050136,120]
[358248729,1744876282639,-3141.6,0.00050136,120]
[358248730,1744876282650,-536.48,0.00050136,120]
[358248731,1744876282659,-1042.98,0.00050136,120]
[358248732,1744876282669,-1821.22,0.00050136,120]
[358248733,1744876282680,-500.0,0.00050136,120]
[358248734,1744876282690,-1155.97,0.00050136,120]
[358248735,1744876282700,-500.0,0.00050136,120]
[358248736,1744876282711,-608.82,0.00050136,120]
[358248737,1744876282722,-500.0,0.00050136,120]
[358248738,1744876282733,-1542.01,0.00050136,120]
[358248739,1744876282744,-151.100749,0.00050136,60]
[358248740,1744876282755,-151.100749,0.00050136,60]
[358248741,1744876282766,-500.0,0.00050136,120]
[358248742,1744876282777,-500.0,0.00050136,120]
[358248743,1744876282788,-500.0,0.00050136,120]
[358248744,1744876282797,-608.54,0.00050136,120]
[358248745,1744876282807,-151.100749,0.00050136,60]
[358248746,1744876282815,-500.0,0.00050136,120]
[358248747,1744876282824,-151.100748,0.00050136,60]
[358248748,1744876282833,-1023.29,0.00050136,120]
[358248749,1744876282843,-151.0,0.00050136,120]
[358248750,1744876282852,-151.0,0.00050136,120]
[358248751,1744876282862,-505.15,0.00050136,120]
[358248752,1744876282871,-512.28,0.00050136,120]
[358248753,1744876282881,-996.12,0.00050136,120]
[358248754,1744876282890,-500.0,0.00050136,120]
[358248755,1744876282900,-500.0,0.00050136,120]
[358248756,1744876282910,-821.03,0.00050136,120]
[358248757,1744876282919,-500.0,0.00050136,120]
[358248758,1744876282928,-1488.96,0.00050136,120]
[358248759,1744876282938,-533.51,0.00050136,120]
[358248760,1744876282947,-2888.97,0.00050136,120]
[358248761,1744876282957,-500.0,0.00050136,120]
[358248762,1744876282967,-605.83,0.00050136,120]
[358248763,1744876282976,-500.0,0.00050136,120]
[358248764,1744876282987,-570.18,0.00050136,120]
[358248765,1744876282996,-722.72,0.00050136,120]
[358248766,1744876283006,-754.15,0.00050136,120]
[358248767,1744876283015,-1214.83,0.00050136,120]
[358248768,1744876283024,-3500.0,0.00050136,10]
[358248769,1744876283034,-500.0,0.00050136,120]
[358248770,1744876283043,-500.0,0.00050136,2]
[358248771,1744876283053,-423.57318466,0.00050136,120]
[358248772,1744876283063,-1002.18,0.00050136,8]
[358248773,1744876283073,-500.0,0.00050136,120]
[358248774,1744876283083,-1218.38,0.00050136,120]
[358248775,1744876283092,-1097.9,0.00050136,120]
[358248776,1744876283103,-500.0,0.00050136,120]
[358248777,1744876283116,-1622.19,0.00050136,120]
[358248778,1744876283126,-7361.74,0.00050136,120]
[358248779,1744876283136,-779.5,0.00050136,120]
[358248780,1744876283146,-2365.86,0.00050136,120]
[358248781,1744876283155,-151.0,0.00050136,120]
[358248782,1744876283165,-500.0,0.00050136,120]
[358248783,1744876283174,-500.0,0.00050136,120]
[358248784,1744876283185,-500.0,0.00050136,120]
[358248785,1744876283195,-658.32958279,0.00050137,120]
[358248786,1744876283205,-202.78346317,0.00050173,10]
[358248787,1744876283215,-150.0,0.00050173,10]
[358248788,1744876283225,-563.56,0.00050235,2]
[358248789,1744876283235,-435.48917781,0.00050278,15]
[358248790,1744876283245,-1022.0,0.000503,7]
[358248791,1744876283258,-200.0,0.00050306,7]
[358248792,1744876283267,-658.32958279,0.00050329,120]
[358248793,1744876283276,-500.0,0.00050409,120]
[358248794,1744876283286,-500.0,0.00050409,120]
[358248795,1744876283296,-171.41279,0.0005041,120]
[358248796,1744876283306,-591.156374,0.0005041,120]
[358248797,1744876283316,-227.981738,0.0005041,120]
[358248798,1744876283325,-500.0,0.0005041,120]
[358248799,1744876283335,-1611.74,0.0005041,120]
[358248800,1744876283345,-500.0,0.0005041,120]
[358248801,1744876283355,-772.09,0.0005041,120]
[358248802,1744876283365,-3077.05,0.0005041,120]
[358248803,1744876283375,-603.7031814,0.0005041,120]
[358248804,1744876283385,-500.0,0.0005041,120]
[358248805,1744876283395,-500.0,0.0005041,120]
[358248806,1744876283405,-516.0,0.0005041,120]
[358248807,1744876283414,-825.74,0.0005041,120]
[358248808,1744876283424,-500.0,0.0005041,120]
[358248809,1744876283433,-500.0,0.0005041,120]
[358248810,1744876283443,-500.0,0.0005041,120]
[358248811,1744876283452,-500.0,0.0005041,120]
[358248812,1744876283462,-1329.86,0.0005041,120]
[358248813,1744876283471,-231.10688929,0.0005041,120]
[358248814,1744876283481,-1041.46,0.0005041,120]
[358248815,1744876283491,-500.0,0.0005041,120]
[358248816,1744876283500,-500.0,0.0005041,120]
[358248817,1744876283510,-995.71,0.0005041,120]
[358248818,1744876283520,-500.0,0.0005041,120]
[358248819,1744876283530,-500.0,0.0005041,120]
[358248820,1744876283539,-307.80256724,0.0005041,120]
[358248821,1744876283549,-561.46,0.0005041,30]
[358248822,1744876283559,-500.0,0.0005041,120]
[358248823,1744876283568,-889.17,0.0005041,120]
[358248824,1744876283578,-1598.19,0.0005041,120]
[358248825,1744876283588,-500.0,0.0005041,120]
[358248826,1744876283598,-2447.13,0.0005041,120]
[358248827,1744876283608,-934.81,0.0005041,120]
[358248828,1744876283618,-500.0,0.0005041,120]
[358248829,1744876283627,-558.88,0.0005041,120]
[358248830,1744876283636,-500.0,0.0005041,120]
[358248831,1744876283645,-500.0,0.0005041,120]
[358248832,1744876283655,-500.0,0.0005041,120]
[358248833,1744876283665,-500.0,0.0005041,120]
[358248834,1744876283674,-500.0,0.0005041,120]
[358248835,1744876283683,-500.0,0.0005041,120]
[358248836,1744876283693,-500.0,0.0005041,120]
[358248837,1744876283702,-120995.21,0.0005041,7]
[358248838,1744876283713,-500.0,0.0005041,120]
[358248839,1744876283724,-1597.3,0.0005041,120]
[358248840,1744876283734,-724.18,0.0005041,2]
[358248841,1744876283743,-500.0,0.0005041,120]
[358248842,1744876283753,-500.0,0.0005041,120]
[358248843,1744876283764,-1073.23,0.0005041,120]
[358248844,1744876283774,-500.0,0.0005041,120]
[358248845,1744876283784,-852.63,0.0005041,120]
[358248846,1744876283793,-500.0,0.0005041,120]
[358248847,1744876283803,-9618.82,0.0005041,2]
[358248848,1744876283813,-500.0,0.0005041,120]
[358248849,1744876283822,-500.0,0.0005041,120]
[358248850,1744876283832,-500.0,0.0005041,120]
[358248851,1744876283841,-193.4110779,0.0005041,120]
[358248852,1744876283851,-748.68,0.0005041,120]
[358248853,1744876283860,-507.6,0.0005041,120]
[358248854,1744876283869,-500.0,0.0005041,120]
[358248855,1744876283879,-500.0,0.0005041,120]
[358248856,1744876283889,-4167.06,0.0005041,120]
[358248857,1744876283898,-547.49,0.0005041,120]
[358248858,1744876283908,-762.47,0.0005041,120]
[358248859,1744876283918,-625.52295426,0.0005041,120]
[358248860,1744876283927,-1761.11,0.0005041,120]
[358248861,1744876283937,-500.0,0.0005041,120]
[358248862,1744876283946,-500.0,0.0005041,120]
[358248863,1744876283956,-603.07,0.0005041,120]
[358248864,1744876283966,-677.96,0.0005041,120]
[358248865,1744876283976,-895.97,0.0005041,120]
[358248866,1744876283987,-2042.51,0.0005041,120]
[358248867,1744876283996,-2095.32,0.0005041,120]
[358248868,1744876284006,-500.0,0.0005041,120]
[358248869,1744876284017,-500.0,0.0005041,120]
[358248870,1744876284027,-783.72,0.0005041,120]
[358248871,1744876284037,-568.82,0.0005041,120]
[358248872,1744876284046,-670.78,0.0005041,120]
[358248873,1744876284056,-1727.55,0.0005041,120]
[358248874,1744876284066,-500.0,0.0005041,120]
[358248875,1744876284078,-500.0,0.0005041,120]
[358248876,1744876284091,-500.0,0.0005041,120]
[358248877,1744876284102,-1214.17,0.0005041,120]
[358248878,1744876284118,-500.0,0.0005041,120]
[358248879,1744876284128,-500.0,0.0005041,120]
[358248880,1744876284140,-500.0,0.0005041,120]
[358248881,1744876284150,-500.0,0.0005041,120]
[358248882,1744876284164,-563.29,0.0005041,120]
[358248883,1744876284174,-765.17,0.0005041,120]
[358248884,1744876284187,-781.9,0.0005041,120]
[358248885,1744876284197,-2735.7,0.0005041,120]
[358248886,1744876284207,-2102.94,0.0005041,120]
[358248887,1744876284217,-1420.11,0.0005041,120]
[358248888,1744876284227,-500.0,0.0005041,120]
[358248889,1744876284239,-541.28,0.0005041,120]
[358248890,1744876284249,-620.00228841,0.0005041,2]
[358248891,1744876284259,-500.0,0.0005041,120]
[358248892,1744876284269,-524.96,0.0005041,120]
[358248893,1744876284280,-500.0,0.0005041,120]
[358248894,1744876284291,-500.0,0.0005041,120]
[358248895,1744876284301,-776.69,0.0005041,120]
[358248896,1744876284311,-1055.54,0.0005041,120]
[358248897,1744876284321,-500.0,0.0005041,120]
[358248898,1744876284331,-1489.79,0.0005041,120]
[358248899,1744876284341,-1656.3,0.0005041,120]
[358248900,1744876284353,-1158.21,0.0005041,35]
[358248901,1744876284363,-500.0,0.0005041,120]
[358248902,1744876284373,-500.0,0.0005041,120]
[358248903,1744876284384,-500.0,0.0005041,120]
[358248904,1744876284394,-1223.23,0.0005041,120]
[358248905,1744876284405,-1296.94,0.0005041,120]
[358248906,1744876284415,-606.92,0.0005041,120]
[358248907,1744876284425,-500.0,0.0005041,120]
[358248908,1744876284435,-500.0,0.0005041,120]
[358248909,1744876284445,-1176.7,0.0005041,120]
[358248910,1744876284455,-1628.14,0.0005041,120]
[358248911,1744876284465,-1112.64,0.0005041,120]
[358248912,1744876284475,-2221.31,0.0005041,120]
[358248913,1744876284486,-500.0,0.0005041,120]
[358248914,1744876284496,-500.0,0.0005041,120]
[358248915,1744876284506,-500.0,0.0005041,120]
[358248916,1744876284516,-530.74,0.0005041,120]
[358248917,1744876284527,-862.16,0.0005041,120]
[358248918,1744876284538,-1379.41,0.0005041,120]
[358248919,1744876284549,-500.0,0.0005041,120]
[358248920,1744876284559,-507.47,0.0005041,120]
[358248921,1744876284569,-500.0,0.0005041,120]
[358248922,1744876284579,-997.54,0.0005041,120]
[358248923,1744876284593,-500.0,0.0005041,120]
[358248924,1744876284603,-1247.38,0.0005041,120]
[358248925,1744876284613,-500.0,0.0005041,120]
[358248926,1744876284623,-516.275566,0.0005041,120]
[358248927,1744876284632,-500.0,0.0005041,120]
[358248928,1744876284643,-500.0,0.0005041,120]
[358248929,1744876284653,-519.16,0.0005041,120]
[358248930,1744876284663,-730.71,0.0005041,120]
[358248931,1744876284674,-946.46,0.0005041,120]
[358248932,1744876284684,-500.0,0.0005041,120]
[358248933,1744876284695,-500.0,0.0005041,120]